[Event "Titled Tuesday Blitz March 28 Early 2023"]
[White "Rendle, Thomas E"]
[Black "Mortazavi, Ali"]
[WhiteFideId "408760"]
[BlackFideId "401323"]
[WhiteElo "2428"]
[BlackElo "2339"]
[Result "1/2-1/2"]
[Round "04"]
[TimeControl "180+2"]
[Date "2023.03.28"]
[WhiteClock "0:00:06"]
[BlackClock "0:00:02"]

1. Nf3 {[%clk 0:03:00]}  Nf6 {[%clk 0:02:59]} 2. b3 {[%clk 0:03:00]}  g6 {[%clk 0:02:59]} 3. Bb2 {[%clk 0:03:00]}  Bg7 {[%clk 0:03:00]} 4. g3 {[%clk 0:03:00]}  O-O {[%clk 0:03:01]} 5. Bg2 {[%clk 0:03:00]}  d6 {[%clk 0:03:02]} 6. d4 {[%clk 0:03:00]}  Nbd7 {[%clk 0:03:01]} 7. O-O {[%clk 0:02:58]}  a5 {[%clk 0:03:01]} 8. a4 {[%clk 0:02:58]}  Ne4 {[%clk 0:02:50]} 9. Nbd2 {[%clk 0:02:56]}  Nxd2 {[%clk 0:02:43]} 10. Qxd2 {[%clk 0:02:46]}  Nf6 {[%clk 0:02:42]} 11. e3 {[%clk 0:02:40]}  c6 {[%clk 0:02:38]} 12. Ne1 {[%clk 0:02:29]}  Bf5 {[%clk 0:02:28]} 13. Nd3 {[%clk 0:02:24]}  Qc8 {[%clk 0:02:17]} 14. f3 {[%clk 0:02:14]}  d5 {[%clk 0:02:16]} 15. Ba3 {[%clk 0:02:12]}  Re8 {[%clk 0:02:16]} 16. g4 {[%clk 0:02:09]}  Bd7 {[%clk 0:02:14]} 17. Ne5 {[%clk 0:02:05]}  Be6 {[%clk 0:01:58]} 18. Rac1 {[%clk 0:01:59]}  Nd7 {[%clk 0:01:56]} 19. Nd3 {[%clk 0:02:00]}  f6 {[%clk 0:01:38]} 20. c4 {[%clk 0:01:57]}  dxc4 {[%clk 0:01:38]} 21. bxc4 {[%clk 0:01:56]}  Nb6 {[%clk 0:01:38]} 22. Nb2 {[%clk 0:01:44]}  Bf7 {[%clk 0:01:35]} 23. e4 {[%clk 0:01:40]}  Qc7 {[%clk 0:01:17]} 24. d5 {[%clk 0:01:34]}  Nd7 {[%clk 0:00:58]} 25. h3 {[%clk 0:01:30]}  Rad8 {[%clk 0:00:49]} 26. Rfd1 {[%clk 0:01:16]}  Qg3 {[%clk 0:00:29]} 27. Qf2 {[%clk 0:01:10]}  Qxf2+ {[%clk 0:00:29]} 28. Kxf2 {[%clk 0:01:11]}  Bh6 {[%clk 0:00:29]} 29. Rc2 {[%clk 0:01:09]}  Ne5 {[%clk 0:00:24]} 30. Bc5 {[%clk 0:01:04]}  cxd5 {[%clk 0:00:23]} 31. exd5 {[%clk 0:01:00]}  Rc8 {[%clk 0:00:22]} 32. Bb6 {[%clk 0:00:59]}  f5 {[%clk 0:00:15]} 33. Bxa5 {[%clk 0:00:56]}  fxg4 {[%clk 0:00:09]} 34. hxg4 {[%clk 0:00:56]}  Bf4 {[%clk 0:00:09]} 35. Bb6 {[%clk 0:00:51]}  g5 {[%clk 0:00:09]} 36. Bd4 {[%clk 0:00:48]}  Ng6 {[%clk 0:00:08]} 37. Bf1 {[%clk 0:00:41]}  Bxd5 {[%clk 0:00:08]} 38. Bd3 {[%clk 0:00:39]}  Bf7 {[%clk 0:00:08]} 39. Be4 {[%clk 0:00:33]}  Red8 {[%clk 0:00:07]} 40. Bxb7 {[%clk 0:00:25]}  Rb8 {[%clk 0:00:07]} 41. Be4 {[%clk 0:00:26]}  Rb3 {[%clk 0:00:07]} 42. a5 {[%clk 0:00:20]}  Rxd4 {[%clk 0:00:07]} 43. Rxd4 {[%clk 0:00:20]}  Be3+ {[%clk 0:00:07]} 44. Kg2 {[%clk 0:00:18]}  Bxd4 {[%clk 0:00:08]} 45. Nd3 {[%clk 0:00:16]}  Ra3 {[%clk 0:00:06]} 46. c5 {[%clk 0:00:16]}  Nf4+ {[%clk 0:00:05]} 47. Nxf4 {[%clk 0:00:15]}  gxf4 {[%clk 0:00:06]} 48. c6 {[%clk 0:00:16]}  Be6 {[%clk 0:00:04]} 49. c7 {[%clk 0:00:16]}  Bc8 {[%clk 0:00:05]} 50. Rd2 {[%clk 0:00:10]}  e5 {[%clk 0:00:05]} 51. Rc2 {[%clk 0:00:06]}  Rxa5 {[%clk 0:00:04]} 52. Bf5 {[%clk 0:00:06]}  Ra8 {[%clk 0:00:02]} 53. Be4 {[%clk 0:00:05]}  Ra7 {[%clk 0:00:01]} 54. Bf5 {[%clk 0:00:05]}  Ra8 {[%clk 0:00:01]} 55. Be4 {[%clk 0:00:06]}  Ra7 {[%clk 0:00:02]} 56. Bf5 {[%clk 0:00:06]}  Ra8 {[%clk 0:00:02]} 1/2-1/2


[Site "https://www.chess.com"]

[Event "Titled Tuesday Blitz March 28 Early 2023"]
[White "Savitha Shri B"]
[Black "Kucuksari, Kaan"]
[WhiteFideId "35061887"]
[BlackFideId "6380166"]
[WhiteElo "2191"]
[BlackElo "2364"]
[Result "1-0"]
[Round "04"]
[TimeControl "180+2"]
[Date "2023.03.28"]
[WhiteClock "0:00:21"]
[BlackClock "0:00:03"]

1. e4 {[%clk 0:03:00]}  e5 {[%clk 0:02:59]} 2. Nf3 {[%clk 0:03:01]}  Nc6 {[%clk 0:02:58]} 3. Bb5 {[%clk 0:03:01]}  a6 {[%clk 0:02:56]} 4. Bxc6 {[%clk 0:02:59]}  dxc6 {[%clk 0:02:56]} 5. d4 {[%clk 0:03:00]}  exd4 {[%clk 0:02:54]} 6. Qxd4 {[%clk 0:03:01]}  Qxd4 {[%clk 0:02:54]} 7. Nxd4 {[%clk 0:03:02]}  Nf6 {[%clk 0:02:54]} 8. Nd2 {[%clk 0:03:00]}  c5 {[%clk 0:02:52]} 9. N4f3 {[%clk 0:02:55]}  Bd7 {[%clk 0:02:51]} 10. O-O {[%clk 0:02:54]}  O-O-O {[%clk 0:02:50]} 11. Ng5 {[%clk 0:02:46]}  Be8 {[%clk 0:02:49]} 12. e5 {[%clk 0:02:43]}  Nd7 {[%clk 0:02:47]} 13. e6 {[%clk 0:02:40]}  Ne5 {[%clk 0:02:41]} 14. exf7 {[%clk 0:02:26]}  Nxf7 {[%clk 0:02:41]} 15. Ne6 {[%clk 0:02:25]}  Rd6 {[%clk 0:02:41]} 16. Nxf8 {[%clk 0:02:25]}  Rxf8 {[%clk 0:02:42]} 17. Ne4 {[%clk 0:02:26]}  Rg6 {[%clk 0:02:33]} 18. Be3 {[%clk 0:02:13]}  Bc6 {[%clk 0:02:33]} 19. Ng3 {[%clk 0:02:11]}  b6 {[%clk 0:02:31]} 20. Rfe1 {[%clk 0:02:03]}  h5 {[%clk 0:02:30]} 21. h4 {[%clk 0:02:02]}  Nd6 {[%clk 0:02:30]} 22. Bg5 {[%clk 0:01:58]}  Nf7 {[%clk 0:02:28]} 23. Be7 {[%clk 0:01:46]}  Rh8 {[%clk 0:02:23]} 24. Kh2 {[%clk 0:01:42]}  Rg4 {[%clk 0:02:22]} 25. f3 {[%clk 0:01:41]}  Rg6 {[%clk 0:02:21]} 26. Rad1 {[%clk 0:01:39]}  Bd7 {[%clk 0:02:17]} 27. Ne4 {[%clk 0:01:25]}  Re6 {[%clk 0:02:13]} 28. Ng5 {[%clk 0:01:24]}  Nxg5 {[%clk 0:02:13]} 29. Bxg5 {[%clk 0:01:24]}  Rhe8 {[%clk 0:02:12]} 30. Rxe6 {[%clk 0:01:21]}  Rxe6 {[%clk 0:02:13]} 31. Rd2 {[%clk 0:01:21]}  Re1 {[%clk 0:02:12]} 32. Kg3 {[%clk 0:01:18]}  Ra1 {[%clk 0:02:06]} 33. a3 {[%clk 0:01:16]}  Rb1 {[%clk 0:02:01]} 34. c3 {[%clk 0:01:16]}  Re1 {[%clk 0:01:59]} 35. Bf4 {[%clk 0:01:07]}  Bc6 {[%clk 0:01:45]} 36. Kf2 {[%clk 0:00:56]}  Rb1 {[%clk 0:01:45]} 37. Re2 {[%clk 0:00:55]}  a5 {[%clk 0:01:42]} 38. Be5 {[%clk 0:00:51]}  g6 {[%clk 0:01:41]} 39. Bf4 {[%clk 0:00:50]}  Bd7 {[%clk 0:01:40]} 40. Kg3 {[%clk 0:00:50]}  Bf5 {[%clk 0:01:39]} 41. Be5 {[%clk 0:00:42]}  Kd7 {[%clk 0:01:36]} 42. Kf4 {[%clk 0:00:42]}  Bd3 {[%clk 0:01:34]} 43. Rd2 {[%clk 0:00:34]}  c4 {[%clk 0:01:35]} 44. g4 {[%clk 0:00:30]}  Rf1 {[%clk 0:01:20]} 45. gxh5 {[%clk 0:00:24]}  gxh5 {[%clk 0:01:21]} 46. Bd4 {[%clk 0:00:24]}  Kc6 {[%clk 0:01:15]} 47. Rf2 {[%clk 0:00:24]}  Rh1 {[%clk 0:01:12]} 48. Kg5 {[%clk 0:00:24]}  Kb5 {[%clk 0:01:07]} 49. Kxh5 {[%clk 0:00:24]}  Ka4 {[%clk 0:01:07]} 50. f4 {[%clk 0:00:25]}  Rg1 {[%clk 0:00:54]} 51. f5 {[%clk 0:00:25]}  Rg8 {[%clk 0:00:54]} 52. f6 {[%clk 0:00:24]}  Bg6+ {[%clk 0:00:55]} 53. Kh6 {[%clk 0:00:24]}  Bf7 {[%clk 0:00:54]} 54. Be5 {[%clk 0:00:23]}  c6 {[%clk 0:00:32]} 55. Bc7 {[%clk 0:00:23]}  b5 {[%clk 0:00:31]} 56. Rf5 {[%clk 0:00:22]}  Kb3 {[%clk 0:00:30]} 57. Rg5 {[%clk 0:00:22]}  Rc8 {[%clk 0:00:20]} 58. Bxa5 {[%clk 0:00:21]}  Kxb2 {[%clk 0:00:19]} 59. Kg7 {[%clk 0:00:21]}  Bd5 {[%clk 0:00:19]} 60. f7 {[%clk 0:00:22]}  Bxf7 {[%clk 0:00:15]} 61. Kxf7 {[%clk 0:00:23]}  c5 {[%clk 0:00:15]} 62. h5 {[%clk 0:00:23]}  Ra8 {[%clk 0:00:15]} 63. Bb6 {[%clk 0:00:20]}  Kxc3 {[%clk 0:00:08]} 64. h6 {[%clk 0:00:20]}  Kd4 {[%clk 0:00:04]} 65. h7 {[%clk 0:00:20]}  c3 {[%clk 0:00:04]} 66. Bxc5+ {[%clk 0:00:20]}  Kc4 {[%clk 0:00:05]} 67. Be3 {[%clk 0:00:20]}  c2 {[%clk 0:00:04]} 68. Rg8 {[%clk 0:00:21]}  Ra7+ {[%clk 0:00:04]} 69. Kg6 {[%clk 0:00:20]}  Ra6+ {[%clk 0:00:04]} 70. Kh5 {[%clk 0:00:19]}  c1=Q {[%clk 0:00:02]} 71. Rc8+ {[%clk 0:00:19]}  Kd5 {[%clk 0:00:02]} 72. Bxc1 {[%clk 0:00:20]}  Rxa3 {[%clk 0:00:01]} 73. h8=Q {[%clk 0:00:21]}  Rh3+ {[%clk 0:00:02]} 74. Kg6 {[%clk 0:00:21]}  Rxh8 {[%clk 0:00:03]} 75. Rxh8 {[%clk 0:00:21]} 1-0


[Site "https://www.chess.com"]

[Event "Titled Tuesday Blitz March 28 Early 2023"]
[White "Rozman, Levy"]
[Black "Begunov, Konstantin"]
[WhiteFideId "2039877"]
[BlackFideId "4118510"]
[WhiteElo "2376"]
[BlackElo "2079"]
[Result "1-0"]
[Round "04"]
[TimeControl "180+2"]
[Date "2023.03.28"]
[WhiteClock "0:01:13"]
[BlackClock "0:00:07"]

1. e4 {[%clk 0:02:52]}  c5 {[%clk 0:02:59]} 2. Nc3 {[%clk 0:02:49]}  a6 {[%clk 0:02:40]} 3. d4 {[%clk 0:02:45]}  cxd4 {[%clk 0:02:40]} 4. Qxd4 {[%clk 0:02:46]}  Nc6 {[%clk 0:02:39]} 5. Qe3 {[%clk 0:02:45]}  d6 {[%clk 0:02:39]} 6. Bd2 {[%clk 0:02:38]}  g6 {[%clk 0:02:38]} 7. O-O-O {[%clk 0:02:36]}  Bg7 {[%clk 0:02:38]} 8. Nd5 {[%clk 0:02:36]}  e6 {[%clk 0:02:17]} 9. Bc3 {[%clk 0:02:32]}  f6 {[%clk 0:01:15]} 10. Nb6 {[%clk 0:02:26]}  Bh6 {[%clk 0:00:49]} 11. f4 {[%clk 0:02:18]}  Bxf4 {[%clk 0:00:48]} 12. Qxf4 {[%clk 0:02:16]}  Qxb6 {[%clk 0:00:48]} 13. Rxd6 {[%clk 0:02:12]}  e5 {[%clk 0:00:40]} 14. Qd2 {[%clk 0:02:07]}  Qc7 {[%clk 0:00:28]} 15. Nf3 {[%clk 0:01:36]}  Nd4 {[%clk 0:00:22]} 16. Bb4 {[%clk 0:01:34]}  Nxf3 {[%clk 0:00:16]} 17. gxf3 {[%clk 0:01:35]}  Bd7 {[%clk 0:00:16]} 18. Ba3 {[%clk 0:01:22]}  O-O-O {[%clk 0:00:15]} 19. Rxa6 {[%clk 0:01:16]}  bxa6 {[%clk 0:00:11]} 20. Bxa6+ {[%clk 0:01:16]}  Kb8 {[%clk 0:00:11]} 21. Bd6 {[%clk 0:01:17]}  Bc6 {[%clk 0:00:08]} 22. Qb4+ {[%clk 0:01:13]}  Ka7 {[%clk 0:00:07]} 23. Bxc7 {[%clk 0:01:13]} 1-0


[Site "https://www.chess.com"]

[Event "Titled Tuesday Blitz March 28 Early 2023"]
[White "Saya, Ethan"]
[Black "Poormosavi, Seyed Kian"]
[WhiteFideId "26095181"]
[BlackFideId "12585807"]
[WhiteElo "2150"]
[BlackElo "2334"]
[Result "0-1"]
[Round "04"]
[TimeControl "180+2"]
[Date "2023.03.28"]
[WhiteClock "0:00:05"]
[BlackClock "0:01:48"]

1. d4 {[%clk 0:03:00]}  Nf6 {[%clk 0:02:59]} 2. c4 {[%clk 0:02:59]}  Nc6 {[%clk 0:02:53]} 3. g3 {[%clk 0:02:47]}  e5 {[%clk 0:02:53]} 4. dxe5 {[%clk 0:02:40]}  Nxe5 {[%clk 0:02:53]} 5. b3 {[%clk 0:02:40]}  Bc5 {[%clk 0:02:52]} 6. Bg2 {[%clk 0:02:34]}  Qe7 {[%clk 0:02:52]} 7. Nf3 {[%clk 0:02:12]}  Nxf3+ {[%clk 0:02:51]} 8. Bxf3 {[%clk 0:02:12]}  Qe5 {[%clk 0:02:51]} 9. Qc2 {[%clk 0:01:22]}  Qxa1 {[%clk 0:02:49]} 10. Bb2 {[%clk 0:01:22]}  Bb4+ {[%clk 0:02:42]} 11. Kf1 {[%clk 0:01:22]}  Qxa2 {[%clk 0:02:43]} 12. Kg2 {[%clk 0:01:14]}  O-O {[%clk 0:02:36]} 13. Nc3 {[%clk 0:00:53]}  Bxc3 {[%clk 0:02:32]} 14. Qxc3 {[%clk 0:00:53]}  Qa6 {[%clk 0:02:32]} 15. h4 {[%clk 0:00:48]}  Qe6 {[%clk 0:02:32]} 16. h5 {[%clk 0:00:45]}  h6 {[%clk 0:02:32]} 17. Bd5 {[%clk 0:00:42]}  Qe7 {[%clk 0:02:32]} 18. Rh4 {[%clk 0:00:39]}  d6 {[%clk 0:02:31]} 19. Rf4 {[%clk 0:00:39]}  c6 {[%clk 0:02:31]} 20. Bf3 {[%clk 0:00:38]}  Re8 {[%clk 0:02:31]} 21. Qc1 {[%clk 0:00:29]}  Nd7 {[%clk 0:02:24]} 22. Bxg7 {[%clk 0:00:18]}  Kxg7 {[%clk 0:01:53]} 23. Rg4+ {[%clk 0:00:18]}  Kh7 {[%clk 0:01:54]} 24. Be4+ {[%clk 0:00:18]}  Qxe4+ {[%clk 0:01:54]} 25. Rxe4 {[%clk 0:00:17]}  Rxe4 {[%clk 0:01:55]} 26. Qc2 {[%clk 0:00:15]}  f5 {[%clk 0:01:56]} 27. g4 {[%clk 0:00:08]}  Nf6 {[%clk 0:01:54]} 28. f3 {[%clk 0:00:06]}  Re5 {[%clk 0:01:53]} 29. Kf2 {[%clk 0:00:06]}  Bd7 {[%clk 0:01:50]} 30. Qc3 {[%clk 0:00:06]}  Rae8 {[%clk 0:01:50]} 31. e3 {[%clk 0:00:05]}  fxg4 {[%clk 0:01:48]} 32. f4 {[%clk 0:00:05]}  Ne4+ {[%clk 0:01:48]} 0-1


[Site "https://www.chess.com"]

[Event "Titled Tuesday Blitz March 28 Early 2023"]
[White "Janaszak, Dawid"]
[Black "drdaro"]
[WhiteFideId "1119206"]
[WhiteElo "2220"]
[BlackElo "2403"]
[Result "1-0"]
[Round "04"]
[TimeControl "180+2"]
[Date "2023.03.28"]
[WhiteClock "0:00:06"]
[BlackClock "0:00:01"]

1. e4 {[%clk 0:03:00]}  g6 {[%clk 0:02:51]} 2. Nc3 {[%clk 0:02:59]}  Bg7 {[%clk 0:02:51]} 3. Bc4 {[%clk 0:02:59]}  d6 {[%clk 0:02:50]} 4. h4 {[%clk 0:02:59]}  h5 {[%clk 0:02:49]} 5. d4 {[%clk 0:02:58]}  Nc6 {[%clk 0:02:49]} 6. Be3 {[%clk 0:02:57]}  Nf6 {[%clk 0:02:48]} 7. f3 {[%clk 0:02:55]}  a6 {[%clk 0:02:46]} 8. Nge2 {[%clk 0:02:54]}  b5 {[%clk 0:02:45]} 9. Bb3 {[%clk 0:02:55]}  Na5 {[%clk 0:02:43]} 10. Qd2 {[%clk 0:02:51]}  Bb7 {[%clk 0:02:40]} 11. O-O {[%clk 0:02:37]}  Nxb3 {[%clk 0:02:37]} 12. axb3 {[%clk 0:02:37]}  e6 {[%clk 0:02:34]} 13. Bg5 {[%clk 0:02:34]}  O-O {[%clk 0:02:28]} 14. Qf4 {[%clk 0:02:23]}  Re8 {[%clk 0:02:15]} 15. e5 {[%clk 0:02:09]}  dxe5 {[%clk 0:02:10]} 16. dxe5 {[%clk 0:02:09]}  Nd5 {[%clk 0:02:07]} 17. Nxd5 {[%clk 0:01:54]}  Qxd5 {[%clk 0:02:07]} 18. Bf6 {[%clk 0:01:53]}  Qc5+ {[%clk 0:01:49]} 19. Rf2 {[%clk 0:01:54]}  Bxf6 {[%clk 0:01:38]} 20. exf6 {[%clk 0:01:49]}  Rad8 {[%clk 0:01:35]} 21. Ng3 {[%clk 0:01:36]}  Kh7 {[%clk 0:01:24]} 22. Re1 {[%clk 0:01:33]}  Rd4 {[%clk 0:01:23]} 23. Qe3 {[%clk 0:01:25]}  Qd6 {[%clk 0:01:15]} 24. Nxh5 {[%clk 0:01:08]}  gxh5 {[%clk 0:01:06]} 25. Qg5 {[%clk 0:01:06]}  Qf8 {[%clk 0:00:49]} 26. Qxh5+ {[%clk 0:01:05]}  Kg8 {[%clk 0:00:42]} 27. Re5 {[%clk 0:00:51]}  Rd1+ {[%clk 0:00:36]} 28. Kh2 {[%clk 0:00:44]}  Rd5 {[%clk 0:00:36]} 29. f4 {[%clk 0:00:36]}  Rxe5 {[%clk 0:00:06]} 30. Qxe5 {[%clk 0:00:37]}  Qh6 {[%clk 0:00:05]} 31. h5 {[%clk 0:00:27]}  Rd8 {[%clk 0:00:03]} 32. g4 {[%clk 0:00:22]}  Rd5 {[%clk 0:00:01]} 33. Qxc7 {[%clk 0:00:19]}  Qxf6 {[%clk 0:00:01]} 34. Kg3 {[%clk 0:00:10]}  e5 {[%clk 0:00:01]} 35. Qxb7 {[%clk 0:00:09]}  Qe6 {[%clk 0:00:01]} 36. f5 {[%clk 0:00:09]}  Qd6 {[%clk 0:00:01]} 37. Qc8+ {[%clk 0:00:06]}  Kg7 {[%clk 0:00:01]} 38. Qe8 {[%clk 0:00:05]}  e4+ {[%clk 0:00:01]} 39. Kh3 {[%clk 0:00:05]}  e3 {[%clk 0:00:02]} 40. f6+ {[%clk 0:00:05]}  Kh6 {[%clk 0:00:01]} 41. Qh8+ {[%clk 0:00:05]}  Kg5 {[%clk 0:00:01]} 42. Qg7# {[%clk 0:00:06]} 1-0


[Site "https://www.chess.com"]

[Event "Titled Tuesday Blitz March 28 Early 2023"]
[White "Lorenzo De La Riva, Lazaro"]
[Black "Staudenhocker43"]
[WhiteFideId "2268809"]
[WhiteElo "2294"]
[BlackElo "2554"]
[Result "1-0"]
[Round "04"]
[TimeControl "180+2"]
[Date "2023.03.28"]
[WhiteClock "0:00:15"]
[BlackClock "0:00:10"]

1. e4 {[%clk 0:03:00]}  c5 {[%clk 0:02:59]} 2. Nc3 {[%clk 0:03:00]}  Nc6 {[%clk 0:02:58]} 3. Bb5 {[%clk 0:02:58]}  Nd4 {[%clk 0:02:58]} 4. Bc4 {[%clk 0:02:58]}  Nf6 {[%clk 0:02:56]} 5. Nge2 {[%clk 0:02:58]}  e6 {[%clk 0:02:50]} 6. d3 {[%clk 0:02:49]}  d5 {[%clk 0:02:39]} 7. exd5 {[%clk 0:02:48]}  exd5 {[%clk 0:02:39]} 8. Bb3 {[%clk 0:02:47]}  Nxe2 {[%clk 0:02:32]} 9. Qxe2+ {[%clk 0:02:45]}  Be7 {[%clk 0:02:32]} 10. O-O {[%clk 0:02:43]}  O-O {[%clk 0:02:32]} 11. Qf3 {[%clk 0:02:42]}  Be6 {[%clk 0:02:31]} 12. h3 {[%clk 0:02:40]}  a6 {[%clk 0:02:28]} 13. a4 {[%clk 0:02:35]}  h6 {[%clk 0:02:16]} 14. Bf4 {[%clk 0:02:32]}  Rc8 {[%clk 0:02:15]} 15. a5 {[%clk 0:02:24]}  c4 {[%clk 0:02:12]} 16. dxc4 {[%clk 0:02:23]}  dxc4 {[%clk 0:02:13]} 17. Rfd1 {[%clk 0:02:22]}  cxb3 {[%clk 0:01:52]} 18. Rxd8 {[%clk 0:02:20]}  Rfxd8 {[%clk 0:01:53]} 19. cxb3 {[%clk 0:02:19]}  Nd5 {[%clk 0:01:50]} 20. Nxd5 {[%clk 0:02:16]}  Bxd5 {[%clk 0:01:51]} 21. Qg3 {[%clk 0:02:16]}  Kh7 {[%clk 0:01:48]} 22. Be5 {[%clk 0:02:15]}  Bf8 {[%clk 0:01:48]} 23. Rd1 {[%clk 0:02:09]}  Bc6 {[%clk 0:01:42]} 24. Rxd8 {[%clk 0:01:57]}  Rxd8 {[%clk 0:01:43]} 25. Qc3 {[%clk 0:01:42]}  Rd5 {[%clk 0:01:24]} 26. Kh2 {[%clk 0:01:22]}  Kg8 {[%clk 0:01:18]} 27. Bc7 {[%clk 0:01:12]}  Rg5 {[%clk 0:01:13]} 28. Bg3 {[%clk 0:01:08]}  Rc5 {[%clk 0:01:10]} 29. Qd2 {[%clk 0:01:08]}  Rd5 {[%clk 0:01:10]} 30. Qe1 {[%clk 0:01:05]}  h5 {[%clk 0:00:48]} 31. h4 {[%clk 0:01:04]}  g6 {[%clk 0:00:48]} 32. Be5 {[%clk 0:00:55]}  Rb5 {[%clk 0:00:35]} 33. Bc3 {[%clk 0:00:51]}  Bd6+ {[%clk 0:00:32]} 34. g3 {[%clk 0:00:28]}  Rd5 {[%clk 0:00:26]} 35. Qe3 {[%clk 0:00:24]}  Rd1 {[%clk 0:00:19]} 36. f3 {[%clk 0:00:25]}  Bf8 {[%clk 0:00:17]} 37. Qe5 {[%clk 0:00:23]}  f6 {[%clk 0:00:10]} 38. Qxf6 {[%clk 0:00:23]}  Rd6 {[%clk 0:00:11]} 39. Qh8+ {[%clk 0:00:21]}  Kf7 {[%clk 0:00:12]} 40. Qh7+ {[%clk 0:00:22]}  Ke8 {[%clk 0:00:12]} 41. Bb4 {[%clk 0:00:21]}  Rd7 {[%clk 0:00:10]} 42. Qg8 {[%clk 0:00:19]}  Rf7 {[%clk 0:00:09]} 43. Bxf8 {[%clk 0:00:18]}  Rxf8 {[%clk 0:00:10]} 44. Qxg6+ {[%clk 0:00:18]}  Ke7 {[%clk 0:00:11]} 45. f4 {[%clk 0:00:18]}  Bf3 {[%clk 0:00:10]} 46. Qg5+ {[%clk 0:00:16]}  Kd7 {[%clk 0:00:09]} 47. Qg7+ {[%clk 0:00:16]}  Ke8 {[%clk 0:00:09]} 48. Qe5+ {[%clk 0:00:16]}  Kd7 {[%clk 0:00:09]} 49. f5 {[%clk 0:00:17]}  Bg4 {[%clk 0:00:09]} 50. f6 {[%clk 0:00:17]}  Re8 {[%clk 0:00:09]} 51. Qd5+ {[%clk 0:00:17]}  Kc7 {[%clk 0:00:10]} 52. Qf7+ {[%clk 0:00:17]}  Kd8 {[%clk 0:00:09]} 53. Qd5+ {[%clk 0:00:16]}  Kc7 {[%clk 0:00:08]} 54. f7 {[%clk 0:00:16]}  Re2+ {[%clk 0:00:08]} 55. Kg1 {[%clk 0:00:16]}  Re1+ {[%clk 0:00:09]} 56. Kf2 {[%clk 0:00:16]}  Re2+ {[%clk 0:00:09]} 57. Kf1 {[%clk 0:00:17]}  Rxb2 {[%clk 0:00:09]} 58. f8=Q {[%clk 0:00:15]}  Bh3+ {[%clk 0:00:09]} 59. Ke1 {[%clk 0:00:15]}  Rb1+ {[%clk 0:00:10]} 60. Kd2 {[%clk 0:00:15]}  Rb2+ {[%clk 0:00:10]} 61. Kc1 {[%clk 0:00:15]} 1-0


[Site "https://www.chess.com"]

[Event "Titled Tuesday Blitz March 28 Early 2023"]
[White "Alahakoon, Isuru"]
[Black "Shohat, Yotam"]
[WhiteFideId "9900993"]
[BlackFideId "2813955"]
[WhiteElo "1995"]
[BlackElo "2226"]
[Result "1-0"]
[Round "04"]
[TimeControl "180+2"]
[Date "2023.03.28"]
[WhiteClock "0:01:19"]
[BlackClock "0:00:19"]

1. Nf3 {[%clk 0:03:00]}  Nf6 {[%clk 0:02:57]} 2. d4 {[%clk 0:03:00]}  g6 {[%clk 0:02:57]} 3. Nc3 {[%clk 0:02:59]}  d5 {[%clk 0:02:56]} 4. Bf4 {[%clk 0:02:59]}  Bg7 {[%clk 0:02:56]} 5. Nb5 {[%clk 0:02:59]}  Na6 {[%clk 0:02:56]} 6. e3 {[%clk 0:03:00]}  O-O {[%clk 0:02:52]} 7. h4 {[%clk 0:02:58]}  h5 {[%clk 0:02:50]} 8. Be2 {[%clk 0:02:57]}  Ne4 {[%clk 0:02:48]} 9. Ng5 {[%clk 0:02:51]}  Nxg5 {[%clk 0:02:41]} 10. hxg5 {[%clk 0:02:52]}  c6 {[%clk 0:02:40]} 11. Nc3 {[%clk 0:02:48]}  Nc7 {[%clk 0:02:32]} 12. Bxh5 {[%clk 0:02:45]}  gxh5 {[%clk 0:02:32]} 13. Qxh5 {[%clk 0:02:45]}  Bf5 {[%clk 0:02:32]} 14. Qh2 {[%clk 0:02:19]}  Ne6 {[%clk 0:02:24]} 15. Be5 {[%clk 0:02:17]}  f6 {[%clk 0:02:23]} 16. gxf6 {[%clk 0:02:14]}  exf6 {[%clk 0:02:24]} 17. Bd6 {[%clk 0:02:14]}  Rf7 {[%clk 0:02:17]} 18. O-O-O {[%clk 0:02:13]}  b5 {[%clk 0:01:56]} 19. e4 {[%clk 0:02:13]}  dxe4 {[%clk 0:01:45]} 20. d5 {[%clk 0:02:11]}  cxd5 {[%clk 0:01:45]} 21. Rxd5 {[%clk 0:02:11]}  Bg6 {[%clk 0:01:40]} 22. Qg3 {[%clk 0:01:51]}  Ng5 {[%clk 0:01:35]} 23. Bf4 {[%clk 0:01:42]}  Qe7 {[%clk 0:00:53]} 24. Bxg5 {[%clk 0:01:39]}  fxg5 {[%clk 0:00:51]} 25. Rxg5 {[%clk 0:01:39]}  Bf5 {[%clk 0:00:19]} 26. Qh4 {[%clk 0:01:19]} 1-0


[Site "https://www.chess.com"]

[Event "Titled Tuesday Blitz March 28 Early 2023"]
[White "Skaric, Djuro"]
[Black "Sousa, Andre Ventura"]
[WhiteFideId "934569"]
[BlackFideId "1917617"]
[WhiteElo "2282"]
[BlackElo "2348"]
[Result "1-0"]
[Round "04"]
[TimeControl "180+2"]
[Date "2023.03.28"]
[WhiteClock "0:00:27"]
[BlackClock "0:00:08"]

1. g3 {[%clk 0:03:00]}  Nf6 {[%clk 0:02:59]} 2. Bg2 {[%clk 0:03:01]}  d5 {[%clk 0:03:00]} 3. d3 {[%clk 0:03:01]}  e5 {[%clk 0:03:00]} 4. Nf3 {[%clk 0:03:02]}  Bd6 {[%clk 0:03:01]} 5. O-O {[%clk 0:03:02]}  O-O {[%clk 0:03:01]} 6. Nc3 {[%clk 0:03:02]}  Re8 {[%clk 0:03:00]} 7. e4 {[%clk 0:03:02]}  c6 {[%clk 0:03:00]} 8. h3 {[%clk 0:03:02]}  Nbd7 {[%clk 0:02:59]} 9. Nd2 {[%clk 0:03:02]}  Nf8 {[%clk 0:02:53]} 10. f4 {[%clk 0:03:00]}  exf4 {[%clk 0:02:48]} 11. gxf4 {[%clk 0:02:59]}  dxe4 {[%clk 0:02:48]} 12. dxe4 {[%clk 0:02:59]}  Ng6 {[%clk 0:02:43]} 13. Nb3 {[%clk 0:02:49]}  Bc7 {[%clk 0:02:09]} 14. e5 {[%clk 0:02:45]}  Qxd1 {[%clk 0:02:08]} 15. Rxd1 {[%clk 0:02:44]}  Nh5 {[%clk 0:02:08]} 16. Ne2 {[%clk 0:02:37]}  Nh4 {[%clk 0:01:59]} 17. c4 {[%clk 0:01:46]}  Be6 {[%clk 0:01:48]} 18. Nc5 {[%clk 0:01:41]}  Bxc4 {[%clk 0:01:47]} 19. Nd4 {[%clk 0:01:37]}  Bb6 {[%clk 0:01:21]} 20. b4 {[%clk 0:01:06]}  Nxg2 {[%clk 0:01:08]} 21. Kxg2 {[%clk 0:01:06]}  a5 {[%clk 0:01:05]} 22. Kf3 {[%clk 0:00:52]}  axb4 {[%clk 0:01:03]} 23. Nxb7 {[%clk 0:00:52]}  Bxa2 {[%clk 0:00:26]} 24. Nxc6 {[%clk 0:00:47]}  Bd5+ {[%clk 0:00:21]} 25. Rxd5 {[%clk 0:00:47]}  Rxa1 {[%clk 0:00:21]} 26. Nd6 {[%clk 0:00:45]}  Rea8 {[%clk 0:00:20]} 27. Bb2 {[%clk 0:00:44]}  Rf1+ {[%clk 0:00:18]} 28. Kg4 {[%clk 0:00:42]}  Nxf4 {[%clk 0:00:17]} 29. Rd2 {[%clk 0:00:39]}  g5 {[%clk 0:00:16]} 30. Nf5 {[%clk 0:00:39]}  Rg1+ {[%clk 0:00:16]} 31. Kf3 {[%clk 0:00:38]}  h5 {[%clk 0:00:16]} 32. h4 {[%clk 0:00:32]}  Rf1+ {[%clk 0:00:16]} 33. Ke4 {[%clk 0:00:32]}  gxh4 {[%clk 0:00:14]} 34. Nxh4 {[%clk 0:00:31]}  Kh7 {[%clk 0:00:13]} 35. Nf3 {[%clk 0:00:31]}  Ng6 {[%clk 0:00:13]} 36. Ng5+ {[%clk 0:00:30]}  Kh6 {[%clk 0:00:13]} 37. Nxf7+ {[%clk 0:00:30]}  Rxf7 {[%clk 0:00:13]} 38. e6 {[%clk 0:00:30]}  Re8 {[%clk 0:00:14]} 39. Kd5 {[%clk 0:00:29]}  Rf5+ {[%clk 0:00:14]} 40. Kd6 {[%clk 0:00:30]}  Bc5+ {[%clk 0:00:15]} 41. Kd7 {[%clk 0:00:30]}  Rff8 {[%clk 0:00:14]} 42. Bc1 {[%clk 0:00:30]}  Kh7 {[%clk 0:00:13]} 43. Rd5 {[%clk 0:00:30]}  Be7 {[%clk 0:00:11]} 44. Rxh5+ {[%clk 0:00:30]}  Kg7 {[%clk 0:00:11]} 45. Bh6+ {[%clk 0:00:29]}  Kg8 {[%clk 0:00:11]} 46. Bxf8 {[%clk 0:00:29]}  Rxf8 {[%clk 0:00:12]} 47. Nxe7+ {[%clk 0:00:29]}  Kg7 {[%clk 0:00:11]} 48. Rg5 {[%clk 0:00:29]}  b3 {[%clk 0:00:08]} 49. Rxg6+ {[%clk 0:00:28]}  Kh7 {[%clk 0:00:09]} 50. Rg2 {[%clk 0:00:27]}  Rb8 {[%clk 0:00:08]} 51. Rb2 {[%clk 0:00:26]}  Kg7 {[%clk 0:00:07]} 52. Nc6 {[%clk 0:00:27]}  Rb7+ {[%clk 0:00:08]} 53. Kd8 {[%clk 0:00:27]} 1-0


[Site "https://www.chess.com"]